[Event "WSTCC-65 2024"]
[Site "Krakow"]
[Date "2024.07.05"]
[Round "4.15"]
[White "Hansch, Klaus-Michael"]
[Black "Gasik, Jadwiga"]
[Result "1/2-1/2"]
[ECO "B13"]
[WhiteElo "1898"]
[BlackElo "1780"]
[Annotator "NA RC"]
[PlyCount "148"]
[EventDate "2024.07.01"]
[EventType "team-tourn"]
[EventCountry "POL"]
[SourceTitle "playchess.com"]
[Source "ChessBase"]
[SourceQuality "1"]
[TimeControl "40/5400+30:1800+30"]

1. e4 {[%emt 0:00:04]} c6 {[%emt 0:00:06]} 2. d4 {[%emt 0:00:31]} d5 {[%emt 0:00:05]} 3. exd5 {[%emt 0:00:36]} cxd5 {[%emt 0:00:08]} 4. Bd3 {[%emt 0:00:51]} Nc6 {[%emt 0:01:36]} 5. c3 {[%emt 0:00:11]} g6 {[%emt 0:01:07]} 6. h3 {[%emt 0:02:34]} Bg7 {[%emt 0:00:20]} 7. Nf3 {[%emt 0:00:30]} Nf6 {[%emt 0:02:03]} 8. Bf4 {[%emt 0:06:20]} Qb6 {[%emt 0:05:32]} 9. Qd2 {[%emt 0:03:01]} h6 {[%emt 0:02:46]} 10. Na3 {[%emt 0:03:27]} Bd7 {[%emt 0:00:33]} 11. Rb1 {[%emt 0:02:42]} Rc8 {[%emt 0:01:03]} 12. O-O {[%emt 0:01:39]} Ne4 {[%emt 0:02:10]} 13. Qe3 {[%emt 0:05:52]} g5 {[%emt 0:01:23]} 14. Bh2 {[%emt 0:00:39]} f5 {[%emt 0:04:08]} 15. Bxe4 {[%emt 0:06:20]} fxe4 {[%emt 0:03:51]} 16. Nd2 {[%emt 0:09:29]} O-O {[%emt 0:01:42]} 17. Nc2 {[%emt 0:11:15]} Bf5 {[%emt 0:01:52]} 18. Nb3 {[%emt 0:00:49]} e5 {[%emt 0:06:47]} 19. Rfd1 {[%emt 0:02:37]} Bg6 {[%emt 0:03:31]} 20. dxe5 {[%emt 0:05:54]} Qxe3 {[%emt 0:00:33]} 21. Nxe3 {[%emt 0:00:29]} Nxe5 {[%emt 0:01:17]} 22. Bxe5 {[%emt 0:01:32]} Bxe5 {[%emt 0:00:45]} 23. Nxd5 {[%emt 0:00:35]} Rf7 {[%emt 0:00:38]} 24. Ne3 {[%emt 0:00:23]} Rcf8 {[%emt 0:00:17]} 25. Rd2 {[%emt 0:01:50]} Bc7 {[%emt 0:01:07]} 26. Rbd1 {[%emt 0:03:24]} Bb6 {[%emt 0:00:58]} 27. Nd4 {[%emt 0:00:24]} Bh5 {[%emt 0:05:31]} 28. g4 {[%emt 0:03:22]} Bg6 {[%emt 0:00:22]} 29. Kg2 {[%emt 0:01:24]} Kh7 {[%emt 0:05:46]} 30. Nc4 {[%emt 0:01:01]} Bc5 {[%emt 0:03:57]} 31. Ne5 {[%emt 0:02:19]} Re7 {[%emt 0:03:39]} 32. Nxg6 {[%emt 0:02:36]} Kxg6 {[%emt 0:00:11]} 33. Nf5 {[%emt 0:00:20]} Ref7 {[%emt 0:01:54]} 34. Re1 {[%emt 0:02:20]} Re8 {[%emt 0:01:45]} 35. Rde2 {[%emt 0:02:07]} e3 {[%emt 0:01:02]} 36. fxe3 {[%emt 0:00:41]} h5 {[%emt 0:00:50]} 37. e4 {[%emt 0:00:16]} hxg4 {[%emt 0:00:23]} 38. hxg4 {[%emt 0:00:28]} Rh7 {[%emt 0:00:26]} 39. Rh1 {[%emt 0:02:06]} Rxh1 {[%emt 0:00:34]} 40. Kxh1 {[%emt 0:00:06]} Bb6 {[%emt 0:00:24]} 41. e5 {[%emt 0:35:33]} Bc7 {[%emt 0:31:02]} 42. e6 {[%emt 0:01:22]} Kf6 {[%emt 0:00:38]} 43. e7 {[%emt 0:00:50]} Kf7 {[%emt 0:01:26]} 44. c4 {[%emt 0:03:01]} b6 {[%emt 0:03:06]} 45. b4 {[%emt 0:00:12]} Kf6 {[%emt 0:01:08]} 46. c5 {[%emt 0:00:57]} bxc5 {[%emt 0:00:16]} 47. bxc5 {[%emt 0:00:14]} Bf4 {[%emt 0:00:31]} 48. Nd6 {[%emt 0:00:56]} Rxe7 {[%emt 0:00:30]} 49. Rxe7 {[%emt 0:01:46]} Kxe7 {[%emt 0:00:11]} 50. Ne4 {[%emt 0:00:18]} Kd7 {[%emt 0:00:40]} 51. Kg2 {[%emt 0:00:12]} Kc6 {[%emt 0:01:09]} 52. Nf2 {[%emt 0:05:38]} Be3 {[%emt 0:03:43]} 53. Ne4 {[%emt 0:01:16]} a5 {[%emt 0:05:08]} 54. Kf3 {[%emt 0:00:59]} Bxc5 {[%emt 0:07:44]} 55. Nxg5 {[%emt 0:00:00]} Kd5 {[%emt 0:00:00]} 56. Ne4 {[%emt 0:00:00]} Bd4 {[%emt 0:00:00]} 57. Nd2 {[%emt 0:00:00]} a4 {[%emt 0:00:00]} 58. Ke2 {[%emt 0:00:00]} Kc5 {[%emt 0:00:00]} 59. Kd3 {[%emt 0:00:00]} Bg7 {[%emt 0:00:00]} 60. Kc2 {[%emt 0:00:00]} Kb4 {[%emt 0:00:00]} 61. Nb1 {[%emt 0:00:00]} Bf6 {[%emt 0:00:00]} 62. Kd3 {[%emt 0:00:00]} a3 {[%emt 0:00:00]} 63. Nd2 {[%emt 0:00:00]} Bg7 {[%emt 0:00:00]} 64. g5 {[%emt 0:00:00]} Kc5 {[%emt 0:00:00]} 65. Nb1 {[%emt 0:00:00]} Kd5 {[%emt 0:00:00]} 66. Nxa3 {[%emt 0:00:00]} Ke5 {[%emt 0:00:00]} 67. Nc4+ {[%emt 0:00:00]} Kf5 {[%emt 0:00:00]} 68. Nd6+ {[%emt 0:00:00]} Kxg5 {[%emt 0:00:00]} 69. Ke4 {[%emt 0:00:00]} Bc3 {[%emt 0:00:00]} 70. a4 {[%emt 0:00:00]} Kf6 {[%emt 0:00:00]} 71. Kd5 {[%emt 0:00:00]} Ke7 {[%emt 0:00:00]} 72. Kc6 {[%emt 0:00:00]} Bb4 {[%emt 0:00:00]} 73. Nb7 {[%emt 0:00:00]} Be1 {[%emt 0:00:00]} 74. a5 {[%emt 0:00:00]} Bxa5 {[%emt 0:00:00]} 1/2-1/2

[Event "WSTCC-65 2024"]
[Site "Krakow"]
[Date "2024.07.05"]
[Round "4.16"]
[White "McAndrew, Robert"]
[Black "Staub, Gerhard"]
[Result "0-1"]
[ECO "A20"]
[WhiteElo "1926"]
[BlackElo "2089"]
[Annotator "NA RC"]
[PlyCount "63"]
[EventDate "2024.07.01"]
[EventType "team-tourn"]
[EventCountry "POL"]
[SourceTitle "playchess.com"]
[Source "ChessBase"]
[SourceQuality "1"]
[TimeControl "40/5400+30:1800+30"]

1. c4 {[%emt 0:00:06]} e5 {[%emt 0:00:13]} 2. g3 {[%emt 0:00:16]} Nf6 {[%emt 0:00:28]} 3. Bg2 {[%emt 0:00:24]} c6 {[%emt 0:00:17]} 4. Nf3 {[%emt 0:01:19]} e4 {[%emt 0:02:52]} 5. Nd4 {[%emt 0:01:16]} Qb6 {[%emt 0:00:37]} 6. Nb3 {[%emt 0:09:15]} a5 {[%emt 0:00:27]} 7. d3 {[%emt 0:00:39]} a4 {[%emt 0:01:34]} 8. N3d2 {[%emt 0:00:56]} Bc5 {[%emt 0:05:54]} 9. O-O {[%emt 0:00:33]} e3 {[%emt 0:00:37]} 10. fxe3 {[%emt 0:01:46]} Bxe3+ {[%emt 0:00:08]} 11. Kh1 {[%emt 0:00:05]} d6 {[%emt 0:10:48]} 12. Nc3 {[%emt 0:32:46]} a3 {[%emt 0:05:03]} 13. Rb1 {[%emt 0:06:42]} O-O {[%emt 0:03:31]} 14. Rxf6 {[%emt 0:12:21]} gxf6 {[%emt 0:00:57]} 15. bxa3 {[%emt 0:02:32]} Qd8 {[%emt 0:01:51]} 16. Bb2 {[%emt 0:10:00]} Nd7 {[%emt 0:04:57]} 17. Nce4 {[%emt 0:02:30]} Ne5 {[%emt 0:01:33]} 18. Nf3 {[%emt 0:00:23]} Ng4 {[%emt 0:09:14]} 19. h3 {[%emt 0:00:25]} d5 {[%emt 0:02:35]} 20. hxg4 {[%emt 0:01:05]} dxe4 {[%emt 0:00:23]} 21. Nh4 {[%emt 0:02:15]} Bxg4 {[%emt 0:04:06]} 22. Bxe4 {[%emt 0:00:21]} Qd6 {[%emt 0:06:52]} 23. Kg2 {[%emt 0:01:06]} Ra5 {[%emt 0:06:51]} 24. Qe1 {[%emt 0:06:01]} Rg5 {[%emt 0:02:12]} 25. Nf3 {[%emt 0:00:09]} Bxf3+ {[%emt 0:01:38]} 26. exf3 {[%emt 0:00:52]} Re8 {[%emt 0:11:48]} 27. g4 {[%emt 0:00:28]} Bd4 {[%emt 0:02:29]} 28. Qh4 {[%emt 0:01:31]} Rg7 {[%emt 0:03:39]} 29. Bxd4 Qxd4 30. Qf2 {[%emt 0:02:50]} Qd7 {[%emt 0:02:05]} 31. Qc5 Rxe4 32. dxe4 0-1

[Event "WSTCC-65 2024"]
[Site "Krakow"]
[Date "2024.07.05"]
[Round "4.16"]
[White "Turecki, Stanislaw"]
[Black "Vogel, Robert"]
[Result "0-1"]
[ECO "B06"]
[WhiteElo "1873"]
[BlackElo "2085"]
[Annotator "NA RC"]
[PlyCount "42"]
[EventDate "2024.07.01"]
[EventType "team-tourn"]
[EventCountry "POL"]
[SourceTitle "playchess.com"]
[Source "ChessBase"]
[SourceQuality "1"]
[TimeControl "40/5400+30:1800+30"]

1. e4 {[%emt 0:00:06]} g6 {[%emt 0:00:16]} 2. d4 {[%emt 0:00:41]} Bg7 {[%emt 0:00:08]} 3. Be3 {[%emt 0:02:03]} d6 {[%emt 0:01:24]} 4. Bc4 {[%emt 0:03:07]} Nf6 {[%emt 0:01:30]} 5. f3 {[%emt 0:00:57]} d5 {[%emt 0:06:15]} 6. Bd3 {[%emt 0:01:20]} dxe4 {[%emt 0:00:27]} 7. fxe4 {[%emt 0:00:30]} Ng4 {[%emt 0:00:34]} 8. Bd2 {[%emt 0:04:00]} Qxd4 {[%emt 0:03:57]} 9. Nh3 {[%emt 0:00:26]} Qxb2 {[%emt 0:02:50]} 10. O-O {[%emt 0:01:16]} Qxa1 {[%emt 0:02:05]} 11. Qf3 {[%emt 0:01:32]} O-O {[%emt 0:02:17]} 12. Nc3 {[%emt 0:01:30]} Qb2 {[%emt 0:03:50]} 13. Nd5 {[%emt 0:01:17]} Nc6 {[%emt 0:04:09]} 14. Ng5 {[%emt 0:01:15]} h6 {[%emt 0:08:24]} 15. Nxf7 {[%emt 0:02:08]} Be6 {[%emt 0:04:53]} 16. Qg3 {[%emt 0:06:08]} Rxf7 {[%emt 0:01:22]} 17. Rxf7 {[%emt 0:01:21]} Kxf7 {[%emt 0:01:08]} 18. h3 {[%emt 0:01:25]} Qa1+ {[%emt 0:03:30]} 19. Bf1 {[%emt 0:01:58]} Qd4+ {[%emt 0:00:38]} 20. Be3 {[%emt 0:00:53]} Nxe3 {[%emt 0:00:29]} 21. Nxe3 {[%emt 0:00:51]} Qxe3+ {[%emt 0:00:55]} 0-1

[Event "WSTCC-65 2024"]
[Site "Krakow"]
[Date "2024.07.05"]
[Round "4.16"]
[White "Bartczak, Hanna"]
[Black "Kundt, Guenther"]
[Result "1/2-1/2"]
[ECO "D00"]
[WhiteElo "1639"]
[BlackElo "1843"]
[Annotator "NA RC"]
[PlyCount "32"]
[EventDate "2024.07.01"]
[EventType "team-tourn"]
[EventCountry "POL"]
[SourceTitle "playchess.com"]
[Source "ChessBase"]
[SourceQuality "1"]
[TimeControl "40/5400+30:1800+30"]

1. d4 {[%emt 0:00:07]} d5 {[%emt 0:00:09]} 2. Nc3 {[%emt 0:00:06]} e6 {[%emt 0:00:18]} 3. Bf4 {[%emt 0:00:10]} c5 {[%emt 0:00:28]} 4. e3 {[%emt 0:00:07]} Bd7 {[%emt 0:04:17]} 5. Nf3 {[%emt 0:04:58]} Nc6 {[%emt 0:01:00]} 6. Nb5 {[%emt 0:05:08]} Rc8 {[%emt 0:07:11]} 7. Bd6 {[%emt 0:10:45]} a6 {[%emt 0:10:21]} 8. Bxf8 {[%emt 0:02:45]} Kxf8 {[%emt 0:00:20]} 9. Nd6 {[%emt 0:02:56]} Rb8 {[%emt 0:06:39]} 10. Ne5 {[%emt 0:04:07]} Be8 {[%emt 0:09:07]} 11. Nxe8 {[%emt 0:11:38]} Nxe5 {[%emt 0:06:14]} 12. Nxg7 {[%emt 0:03:12]} Kxg7 {[%emt 0:15:30]} 13. dxe5 {[%emt 0:00:10]} Ne7 {[%emt 0:03:07]} 14. Qg4+ {[%emt 0:08:59]} Kf8 {[%emt 0:07:05]} 15. Qh4 {[%emt 0:04:34]} Nf5 {[%emt 0:04:07]} 16. Qxd8+ {[%emt 0:04:37]} Rxd8 {[%emt 0:06:28]} 1/2-1/2

[Event "WSTCC-65 2024"]
[Site "Krakow"]
[Date "2024.07.05"]
[Round "4.17"]
[White "Shilov, Sergej"]
[Black "Kyas, Juergen"]
[Result "1-0"]
[ECO "B27"]
[WhiteElo "2143"]
[BlackElo "2173"]
[Annotator "RC"]
[PlyCount "65"]
[EventDate "2024.07.01"]
[EventType "team-tourn"]
[EventCountry "POL"]
[SourceTitle "playchess.com"]
[Source "ChessBase"]
[SourceQuality "1"]
[TimeControl "40/5400+30:1800+30"]

1. e4 {[%emt 0:00:15]} c5 {[%emt 0:00:04]} 2. Nf3 {[%emt 0:00:14]} g6 {[%emt 0:00:04]} 3. c3 {[%emt 0:00:18]} Bg7 {[%emt 0:00:17]} 4. d4 {[%emt 0:00:06]} cxd4 {[%emt 0:00:02]} 5. cxd4 {[%emt 0:00:12]} d5 {[%emt 0:00:09]} 6. exd5 {[%emt 0:00:20]} Nf6 {[%emt 0:00:08]} 7. Bb5+ {[%emt 0:01:32]} Bd7 {[%emt 0:00:07]} 8. Bc4 {[%emt 0:00:26]} O-O {[%emt 0:01:46]} 9. Nc3 {[%emt 0:02:10]} Bg4 {[%emt 0:04:18]} 10. h3 {[%emt 0:03:30]} Bxf3 {[%emt 0:00:21]} 11. Qxf3 {[%emt 0:00:01]} Nbd7 {[%emt 0:00:17]} 12. O-O {[%emt 0:02:18]} Nb6 {[%emt 0:03:08]} 13. Bb3 {[%emt 0:00:35]} Qd7 {[%emt 0:04:49]} 14. Bf4 {[%emt 0:03:46]} Rac8 {[%emt 0:17:03]} 15. Rfe1 {[%emt 0:05:33]} Nc4 {[%emt 0:03:04]} 16. Bxc4 {[%emt 0:09:15]} Rxc4 {[%emt 0:00:03]} 17. Be5 {[%emt 0:00:06]} Qf5 {[%emt 0:17:00]} 18. Re3 {[%emt 0:11:39]} Rd8 {[%emt 0:14:44]} 19. Rae1 {[%emt 0:02:43]} b5 {[%emt 0:14:06]} 20. a3 {[%emt 0:08:19]} a6 {[%emt 0:04:56]} 21. g4 {[%emt 0:04:17]} Qxf3 {[%emt 0:01:45]} 22. Rxf3 {[%emt 0:00:02]} Rxc3 {[%emt 0:01:16]} 23. Rxc3 {[%emt 0:01:15]} Nxd5 {[%emt 0:00:02]} 24. Rc6 {[%emt 0:00:39]} Bxe5 {[%emt 0:05:31]} 25. dxe5 {[%emt 0:00:40]} Nf4 {[%emt 0:00:24]} 26. Re4 {[%emt 0:08:40]} Rd1+ {[%emt 0:02:39]} 27. Kh2 {[%emt 0:00:08]} g5 {[%emt 0:00:02]} 28. h4 {[%emt 0:00:38]} Ne6 {[%emt 0:03:50]} 29. hxg5 {[%emt 0:01:29]} Nxg5 {[%emt 0:00:34]} 30. Re3 {[%emt 0:00:44]} Rd2 {[%emt 0:00:15]} 31. Kg3 {[%emt 0:00:58]} Rxb2 {[%emt 0:00:21]} 32. Rxa6 {[%emt 0:01:48]} Kg7 {[%emt 0:00:21]} 33. Ra7 {[%emt 0:00:57]} 1-0

[Event "WSTCC-65 2024"]
[Site "Krakow"]
[Date "2024.07.05"]
[Round "4.17"]
[White "Kerr, Grant"]
[Black "Kennedy, Shernaz"]
[Result "1/2-1/2"]
[ECO "B21"]
[WhiteElo "1769"]
[BlackElo "1784"]
[Annotator "NA RC"]
[PlyCount "151"]
[EventDate "2024.07.01"]
[EventType "team-tourn"]
[EventCountry "POL"]
[SourceTitle "playchess.com"]
[Source "ChessBase"]
[SourceQuality "1"]
[TimeControl "40/5400+30:1800+30"]

1. e4 {[%emt 0:00:25]} c5 {[%emt 0:00:00]} 2. d4 {[%emt 0:00:10]} cxd4 {[%emt 0:00:12]} 3. c3 {[%emt 0:00:02]} dxc3 {[%emt 0:00:13]} 4. Nxc3 {[%emt 0:00:06]} e6 {[%emt 0:00:15]} 5. Nf3 {[%emt 0:00:30]} Ne7 {[%emt 0:01:26]} 6. Bc4 {[%emt 0:00:20]} Ng6 {[%emt 0:00:28]} 7. O-O {[%emt 0:02:48]} Nc6 {[%emt 0:00:09]} 8. Qe2 {[%emt 0:06:39]} d6 {[%emt 0:00:35]} 9. Rd1 {[%emt 0:07:23]} a6 {[%emt 0:00:54]} 10. Be3 {[%emt 0:07:21]} Be7 {[%emt 0:01:10]} 11. Rac1 {[%emt 0:07:30]} Bd7 {[%emt 0:01:57]} 12. Nd4 {[%emt 0:07:41]} O-O {[%emt 0:02:01]} 13. a4 {[%emt 0:02:56]} Rc8 {[%emt 0:00:49]} 14. Ba2 {[%emt 0:02:19]} Nb4 {[%emt 0:02:28]} 15. Bb1 {[%emt 0:00:09]} Qa5 {[%emt 0:00:50]} 16. Nb3 {[%emt 0:03:31]} Qd8 {[%emt 0:00:43]} 17. a5 {[%emt 0:00:30]} Bc6 {[%emt 0:09:49]} 18. Bb6 {[%emt 0:00:30]} Qe8 {[%emt 0:00:41]} 19. g3 {[%emt 0:05:55]} Ne5 {[%emt 0:03:16]} 20. f4 {[%emt 0:08:40]} Nd7 {[%emt 0:00:40]} 21. Be3 {[%emt 0:00:48]} d5 {[%emt 0:07:28]} 22. Nd4 {[%emt 0:01:54]} dxe4 {[%emt 0:02:28]} 23. Nxc6 {[%emt 0:00:11]} Nxc6 {[%emt 0:01:05]} 24. Bxe4 {[%emt 0:00:12]} Nxa5 {[%emt 0:00:38]} 25. Na4 {[%emt 0:20:11]} Rxc1 {[%emt 0:02:48]} 26. Rxc1 {[%emt 0:00:03]} b5 {[%emt 0:00:00]} 27. Nc5 {[%emt 0:05:22]} Nxc5 28. Bxc5 Bxc5+ {[%emt 0:02:35]} 29. Rxc5 {[%emt 0:00:05]} f5 {[%emt 0:00:59]} 30. Bd3 {[%emt 0:02:05]} Qd7 {[%emt 0:00:29]} 31. Re5 {[%emt 0:01:52]} Rf6 {[%emt 0:01:53]} 32. Qe3 {[%emt 0:02:56]} Nc6 {[%emt 0:01:16]} 33. Rc5 {[%emt 0:00:35]} Qd4 {[%emt 0:01:06]} 34. Kf2 {[%emt 0:01:02]} Qxb2+ {[%emt 0:01:42]} 35. Rc2 {[%emt 0:00:23]} Qb4 {[%emt 0:04:45]} 36. Rxc6 {[%emt 0:00:08]} a5 {[%emt 0:01:49]} 37. Qe2 {[%emt 0:01:57]} Qd4+ {[%emt 0:00:24]} 38. Qe3 {[%emt 0:00:08]} Qb2+ {[%emt 0:00:48]} 39. Rc2 {[%emt 0:00:26]} Qb3 {[%emt 0:01:26]} 40. Qd4 {[%emt 0:01:57]} h6 {[%emt 0:01:08]} 41. Qc3 {[%emt 0:30:38]} Qa4 {[%emt 0:31:17]} 42. Qc5 {[%emt 0:01:51]} b4 {[%emt 0:00:46]} 43. Re2 {[%emt 0:00:00]} Kh7 {[%emt 0:00:00]} 44. Qc4 {[%emt 0:00:00]} Qd7 {[%emt 0:00:00]} 45. Bc2 {[%emt 0:00:00]} Qa7+ {[%emt 0:00:00]} 46. Kf1 {[%emt 0:00:00]} Qb7 {[%emt 0:00:00]} 47. Ke1 {[%emt 0:00:00]} Qb6 {[%emt 0:00:00]} 48. Bb3 {[%emt 0:00:00]} Qg1+ {[%emt 0:00:00]} 49. Kd2 {[%emt 0:00:00]} h5 {[%emt 0:00:00]} 50. Qd3 {[%emt 0:00:00]} Qb6 {[%emt 0:00:00]} 51. Qe3 {[%emt 0:00:00]} Qc6 {[%emt 0:00:00]} 52. Qd3 {[%emt 0:00:00]} a4 {[%emt 0:00:00]} 53. Bc4 {[%emt 0:00:00]} Kg6 {[%emt 0:00:33]} 54. Bb5 {[%emt 0:00:00]} Qa8 {[%emt 0:00:46]} 55. Qc4 {[%emt 0:00:00]} Qa5 {[%emt 0:00:54]} 56. Kc1 {[%emt 0:00:00]} a3 {[%emt 0:01:20]} 57. Kb1 {[%emt 0:00:00]} Kh7 {[%emt 0:02:03]} 58. Ka2 {[%emt 0:00:00]} Rf8 {[%emt 0:02:03]} 59. Rxe6 {[%emt 0:00:00]} Rb8 {[%emt 0:00:42]} 60. Re5 {[%emt 0:00:00]} Qd8 {[%emt 0:00:46]} 61. Re2 {[%emt 0:00:00]} Qb6 {[%emt 0:00:26]} 62. Ba4 {[%emt 0:00:00]} Rd8 {[%emt 0:06:47]} 63. Bb3 {[%emt 0:00:00]} Qd6 {[%emt 0:03:16]} 64. Rc2 {[%emt 0:00:00]} Rf8 {[%emt 0:05:30]} 65. Qd5 {[%emt 0:00:00]} Qb6 {[%emt 0:00:54]} 66. Qc5 {[%emt 0:00:00]} Qb8 {[%emt 0:00:29]} 67. Rc4 {[%emt 0:00:00]} Qa8 {[%emt 0:03:54]} 68. Qxb4 {[%emt 0:00:13]} Rb8 {[%emt 0:03:54]} 69. Qc3 {[%emt 0:01:31]} Re8 {[%emt 0:03:36]} 70. Rc7 {[%emt 0:01:53]} Re2+ {[%emt 0:00:15]} 71. Bc2 {[%emt 0:00:37]} Qd5+ {[%emt 0:03:13]} 72. Kxa3 {[%emt 0:01:04]} Qd6+ {[%emt 0:01:35]} 73. Kb3 {[%emt 0:02:41]} Qb6+ {[%emt 0:00:35]} 74. Ka2 {[%emt 0:00:44]} Qa6+ {[%emt 0:02:25]} 75. Kb3 {[%emt 0:00:25]} Qb6+ {[%emt 0:02:41]} 76. Ka2 {[%emt 0:00:20]} 1/2-1/2

[Event "WSTCC-65 2024"]
[Site "Krakow"]
[Date "2024.07.05"]
[Round "4.18"]
[White "Pruefer, Friedbert"]
[Black "Gasik, Piotr"]
[Result "1-0"]
[ECO "A83"]
[WhiteElo "2214"]
[BlackElo "1954"]
[Annotator "TA"]
[PlyCount "35"]
[EventDate "2024.07.01"]
[EventType "team-tourn"]
[EventCountry "POL"]
[SourceTitle "playchess.com"]
[Source "ChessBase"]
[SourceQuality "1"]
[TimeControl "40/5400+30:1800+30"]

{[%evp 10,35,-9,-24,37,37,72,67,164,164,147,143,153,151,216,221,201,182,373,380,400,287,635,660,29997,29998,29998,29999]} 1. d4 {[%emt 0:00:04]} f5 {[%emt 0:03:24]} 2. e4 {[%emt 0:00:04]} fxe4 {[%emt 0:00:07]} 3. Nc3 {[%emt 0:00:03]} Nf6 {[%emt 0:00:07]} 4. Bg5 {[%emt 0:00:07]} g6 {[%emt 0:00:04]} 5. h4 {[%emt 0:01:25][%cal Bh2h4,Bh4h5,Bh5h6][%mdl 32]} d5 {[%emt 0:06:56]} 6. h5 {[%emt 0:01:20] [#] Bxf6 would now be deadly.} Bg4 {[%emt 0:01:00]} (6... Bf5 $11) 7. Be2 $14 {[%emt 0:08:48]} Bxe2 {[%emt 0:00:12]} 8. Qxe2 {[%emt 0:00:20] aiming for Bxf6.} Bg7 {[%emt 0:00:12]} (8... Nc6 $14) 9. h6 $18 {[%emt 0:00:43]} Bf8 {[%emt 0:00:07]} 10. f3 {[%emt 0:05:56] White has more active pieces.} Qd6 {[%emt 0:09:03] [#] ...Qg3+ is the strong threat.} 11. O-O-O {[%emt 0:05:31]} (11. fxe4 Qg3+ 12. Kd1 Qxg5 $17) 11... exf3 {[%emt 0:13:23]} (11... Qa6 $16 12. Bxf6 (12. fxe4 Qxe2 13. Ngxe2 dxe4 $18) 12... Qxe2 13. Ngxe2 exf6) 12. Nxf3 {[%emt 0:01:25][%cal Bg1f3,Bf3g5,Bg5e6][%mdl 32]} c6 {[%emt 0:00:06] Prevents Nb5} 13. Rh4 $36 {[%emt 0:08:32][%mdl 2048] White is in control.} Nbd7 $2 {[%emt 0:01:55]} (13... Na6 14. Re1 Rg8) 14. Bf4 {[%emt 0:03:26]} Qb4 {[%emt 0:00:21]} 15. Ng5 {[%emt 0:01:33] Inhibits Ne4.} Nh5 $2 (15... e5 16. a3 (16. Bxe5 Qe7 $16) (16. dxe5 Nh5 $18) 16... Qc4) 16. Rxh5 {[%emt 0:00:30]} gxh5 {[%emt 0:02:44]} 17. Qxh5+ {[%emt 0:01:33]} Kd8 {[%emt 0:01:09]} 18. Ne6+ {[%emt 0:00:27] Black got outplayed after the opening.   Weighted Error Value: White=0.12 (very precise) /Black=1.27.  Mistake:       	---       	Black=4      Inaccurate:     	---       	Black=2      OK:         	White=3     	Black=3      Best:        	White=3     	Black=1} 1-0

[Event "WSTCC-65 2024"]
[Site "Krakow"]
[Date "2024.07.05"]
[Round "4.18"]
[White "O`Neill, Julie Anne"]
[Black "Booth, Anthony"]
[Result "1-0"]
[ECO "D94"]
[WhiteElo "1806"]
[BlackElo "1742"]
[Annotator "NA RC"]
[PlyCount "95"]
[EventDate "2024.07.01"]
[EventType "team-tourn"]
[EventCountry "POL"]
[SourceTitle "playchess.com"]
[Source "ChessBase"]
[SourceQuality "1"]
[TimeControl "40/5400+30:1800+30"]

1. d4 {[%emt 0:00:04]} Nf6 {[%emt 0:00:12]} 2. Nf3 {[%emt 0:00:08]} g6 {[%emt 0:00:20]} 3. c4 {[%emt 0:00:13]} d5 {[%emt 0:00:41]} 4. e3 {[%emt 0:00:09]} Bg7 {[%emt 0:00:12]} 5. Nc3 {[%emt 0:00:31]} O-O {[%emt 0:01:10]} 6. Be2 {[%emt 0:00:32]} c6 {[%emt 0:05:12]} 7. O-O {[%emt 0:00:58]} Nbd7 {[%emt 0:02:11]} 8. Qc2 {[%emt 0:06:38]} Qc7 {[%emt 0:01:20]} 9. h3 {[%emt 0:00:50]} e5 {[%emt 0:01:10]} 10. Rd1 {[%emt 0:05:55]} Re8 {[%emt 0:01:50]} 11. Qb3 {[%emt 0:08:13]} exd4 12. Nxd4 {[%emt 0:01:26]} Nc5 {[%emt 0:07:28]} 13. Qc2 {[%emt 0:02:48]} Bf5 {[%emt 0:01:39]} 14. Nxf5 {[%emt 0:00:56]} gxf5 15. cxd5 {[%emt 0:06:16]} cxd5 {[%emt 0:04:32]} 16. Qxf5 {[%emt 0:04:38]} Re5 17. Qc2 {[%emt 0:01:42]} Nce4 {[%emt 0:04:18]} 18. Bd3 {[%emt 0:02:02]} Rae8 {[%emt 0:02:02]} 19. Nxe4 {[%emt 0:08:58]} Qxc2 {[%emt 0:00:46]} 20. Nxf6+ {[%emt 0:00:12]} Bxf6 {[%emt 0:00:11]} 21. Bxc2 {[%emt 0:00:09]} Rd8 {[%emt 0:03:36]} 22. Bd2 {[%emt 0:02:38]} Re6 {[%emt 0:03:19]} 23. Bc3 {[%emt 0:00:54]} Bxc3 {[%emt 0:00:20]} 24. bxc3 {[%emt 0:00:14]} Rc6 {[%emt 0:00:26]} 25. Bb3 {[%emt 0:01:26]} Rxc3 {[%emt 0:01:07]} 26. Bxd5 {[%emt 0:00:24]} Rd7 {[%emt 0:01:02]} 27. e4 {[%emt 0:01:31]} Kg7 {[%emt 0:00:26]} 28. Rab1 {[%emt 0:00:17]} b6 {[%emt 0:00:24]} 29. Rb3 {[%emt 0:01:48]} Rxb3 {[%emt 0:02:54]} 30. axb3 {[%emt 0:00:21]} Kf6 {[%emt 0:00:14]} 31. f4 {[%emt 0:00:28]} Rc7 {[%emt 0:00:52]} 32. Rd3 {[%emt 0:02:13]} Rc2 {[%emt 0:00:37]} 33. Bc4 {[%emt 0:01:37]} Ke7 {[%emt 0:02:45]} 34. e5 {[%emt 0:01:52]} Ra2 {[%emt 0:01:33]} 35. f5 {[%emt 0:00:28]} a6 {[%emt 0:00:46]} 36. f6+ {[%emt 0:05:23]} Ke8 {[%emt 0:00:20]} 37. Bd5 {[%emt 0:00:50]} Rc2 {[%emt 0:01:42]} 38. Rg3 {[%emt 0:02:14]} Re2 {[%emt 0:03:06]} 39. Rg8+ {[%emt 0:05:06]} Kd7 {[%emt 0:00:03]} 40. Bxf7 {[%emt 0:00:27]} Rxe5 {[%emt 0:00:19]} 41. Bh5 {[%emt 0:31:19]} Rxh5 42. f7 {[%emt 0:00:07]} Rf5 {[%emt 0:31:41]} 43. f8=Q {[%emt 0:00:15]} Rxf8 {[%emt 0:00:09]} 44. Rxf8 {[%emt 0:00:02]} Ke7 {[%emt 0:00:43]} 45. Rb8 {[%emt 0:00:18]} b5 {[%emt 0:00:23]} 46. Ra8 {[%emt 0:00:04]} Kd6 {[%emt 0:00:29]} 47. Rxa6+ {[%emt 0:00:13]} Kc5 {[%emt 0:00:03]} 48. Rh6 {[%emt 0:00:44]} 1-0